bitfinex/quotes_ETHUSD_20251019
["timestamp","ask_amount","ask_price","bid_price","bid_amount"]
[1760858057190,0.14716842,3893.1,3893.0,0.002]
[1760858057888,0.1024,3893.1,3893.0,0.002]
[1760858058391,0.001,3893.4,3893.0,0.002]
[1760858058561,0.1024,3893.3,3893.0,0.002]
[1760858059567,0.001,3893.4,3893.0,0.002]
[1760858061377,0.001,3893.4,3893.3,2.78361514]
[1760858061707,0.001,3893.4,3893.3,3.28120029]
[1760858062066,0.001,3893.4,3893.3,5.00920029]
[1760858062467,0.001,3893.4,3893.3,4.98351514]
[1760858066505,0.001,3893.4,3893.3,5.00920029]
[1760858066690,0.001,3893.4,3893.3,6.18418503]
[1760858066891,0.001,3893.4,3893.3,6.15849988]
[1760858067977,0.001,3893.4,3893.3,6.28649988]
[1760858071302,0.001,3893.4,3893.3,6.28849988]
[1760858071695,0.001,3893.4,3893.3,10.15849988]
[1760858072312,0.001,3893.4,3893.3,10.79209988]
[1760858072711,0.001,3893.4,3893.3,10.89506727]
[1760858082833,0.001,3893.4,3893.3,13.60306727]
[1760858083040,0.001,3893.4,3893.3,10.89506727]
[1760858100673,0.1,3893.4,3893.3,9.57446727]
[1760858100975,0.1,3893.4,3893.3,9.47149988]
[1760858102253,0.001,3893.4,3893.3,9.47149988]
[1760858102869,0.001,3893.4,3893.3,6.69539988]
[1760858103179,0.001,3893.4,3893.3,6.91259988]
[1760858107756,0.001,3893.4,3893.3,6.45229988]
[1760858109903,0.001,3893.4,3893.3,6.91369988]
[1760858110210,0.001,3893.4,3893.3,6.45229988]
[1760858113001,0.001,3893.4,3893.3,6.91369988]
[1760858113190,0.001,3893.4,3893.3,10.78369988]
[1760858113910,0.001,3893.4,3893.3,6.91369988]
[1760858117717,0.001,3893.4,3893.3,9.62169988]
[1760858118208,0.001,3893.4,3893.3,9.16029988]
[1760858118595,0.001,3893.4,3893.3,9.62169988]
[1760858122291,1e-08,3893.8,3893.7,5.90985127]
[1760858122497,1e-08,3893.8,3893.7,17.76241258]
[1760858122704,1e-08,3893.8,3893.7,18.22381258]
[1760858123016,1e-08,3893.8,3893.7,18.37701258]
[1760858129402,1e-08,3893.8,3893.7,15.33061258]
[1760858129590,1e-08,3893.8,3893.7,20.36603202]
[1760858130622,1e-08,3893.8,3893.7,19.86945502]
[1760858130943,1e-08,3893.8,3893.7,20.33085502]
[1760858132430,1e-08,3893.8,3893.7,20.45885502]
[1760858137137,1e-08,3893.8,3893.7,17.41245502]
[1760858137348,0.10020001,3893.8,3893.7,6.43847071]
[1760858137502,0.10020001,3893.8,3893.7,7.07207071]
[1760858138060,1e-08,3893.8,3893.7,7.07207071]
[1760858138360,1e-08,3893.8,3893.7,9.78007071]
[1760858138754,1e-08,3893.8,3893.7,13.53896771]
[1760858139423,1e-08,3893.8,3893.7,13.97696771]
[1760858140154,1e-08,3893.8,3893.7,13.53896771]
[1760858140661,1e-08,3893.8,3893.7,14.67091002]
[1760858142653,1e-08,3893.8,3893.7,18.54091002]
[1760858146366,1e-08,3893.8,3893.7,30.99826402]
[1760858146587,1e-08,3893.8,3893.7,23.67058702]
[1760858146793,1e-08,3893.8,3893.7,22.05806802]
[1760858147290,1e-08,3893.8,3893.7,22.18606802]
[1760858148664,0.001,3894.2,3894.1,9.82042677]
[1760858148865,0.001,3894.2,3894.1,14.20407479]
[1760858149065,0.001,3894.2,3894.1,14.33207479]
[1760858149364,0.001,3894.2,3894.1,14.43501939]
[1760858152097,0.001,3894.2,3894.1,14.87301939]
[1760858152663,0.001,3894.2,3894.1,17.81421939]
[1760858154591,0.001,3894.6,3894.5,8.09216302]
[1760858154790,0.001,3894.6,3894.5,16.39785996]
[1760858155214,0.001,3894.6,3894.5,16.54995996]
[1760858160219,0.001,3894.6,3894.5,12.68095997]
[1760858160396,0.001,3894.6,3894.5,17.55495997]
[1760858160615,0.001,3894.6,3894.5,17.11695997]
[1760858161332,0.001,3894.6,3894.5,17.55495997]
[1760858164817,0.001,3894.6,3894.5,17.11695997]
[1760858170122,0.001,3894.6,3894.5,17.54795997]
[1760858170840,0.001,3894.6,3894.5,17.11695997]
[1760858175159,0.001,3894.6,3894.5,20.98595996]
[1760858176232,0.001,3894.6,3894.5,21.41695996]
[1760858178065,0.001,3894.6,3894.5,20.98595996]
[1760858178662,0.001,3894.6,3894.5,21.41695996]
[1760858180362,0.001,3894.6,3894.5,21.28895996]
[1760858180570,0.001,3894.6,3894.5,27.51927096]
[1760858181964,0.001,3894.6,3894.5,21.28895996]
[1760858182133,0.001,3894.6,3894.5,51.28895996]
[1760858182667,0.001,3894.6,3894.5,49.98551396]
[1760858182841,0.001,3894.6,3894.5,44.39280496]
[1760858183066,0.001,3894.6,3894.5,21.28895996]
[1760858183272,0.001,3894.6,3894.5,43.31408996]
[1760858184182,0.1001,3895.7,3895.4,0.6336]
[1760858184368,0.1001,3895.7,3895.5,3.86699999]
[1760858184570,0.40258632,3896.6,3895.5,5.59499999]
[1760858184971,0.40258632,3896.6,3895.5,5.74709999]
[1760858185269,0.2522,3895.6,3895.5,5.74709999]
[1760858185788,0.2522,3895.6,3895.5,8.31416455]
[1760858185956,0.2522,3895.6,3895.5,9.95474457]
[1760858187264,0.40258632,3896.6,3896.1,2.56666923]
[1760858187685,0.40258632,3896.6,3896.0,2.56673033]
[1760858187864,0.099,3896.1,3896.0,2.56673033]
[1760858190088,0.099,3896.1,3896.0,6.43373032]
[1760858192263,0.40258632,3896.6,3896.0,4.77985791]
[1760858192486,0.04473671,3896.7,3896.1,3.86699999]
[1760858192659,0.14373671,3896.7,3896.6,2.56633988]
[1760858192863,0.099,3896.7,3896.6,2.56633988]
[1760858196704,0.099,3896.7,3896.6,4.29433988]
[1760858198599,0.099,3896.7,3896.3,1.728]
[1760858198783,0.0705,3896.8,3896.3,5.59499999]
[1760858198784,0.099,3896.6,3896.3,5.59499999]
[1760858199101,0.0705,3896.8,3896.3,5.59499999]
[1760858199102,0.099,3896.5,3896.3,5.59499999]
[1760858199399,0.099,3896.4,3896.3,5.59499999]
[1760858203790,0.099,3896.4,3896.3,8.16153747]
[1760858206111,0.099,3896.6,3896.4,2.56645131]
[1760858206420,0.099,3896.5,3896.4,2.56645131]
[1760858206786,0.099,3896.5,3896.3,8.16153238]
[1760858207017,0.099,3896.5,3896.4,2.56647161]
[1760858208618,0.17273357,3896.7,3896.5,2.56639797]
[1760858209183,0.27173357,3896.7,3896.5,2.56639797]
[1760858210021,0.17273357,3896.7,3896.5,2.56639797]
[1760858211092,0.27173357,3896.7,3896.5,2.56639797]
[1760858212507,0.27273357,3896.7,3896.5,2.56639797]
[1760858213695,0.17373357,3896.7,3896.5,2.56639797]
[1760858218397,0.17373357,3896.7,3896.4,3.86699999]
[1760858219729,0.17373357,3896.7,3896.4,6.43345724]
[1760858220231,0.17373357,3896.7,3896.5,2.56637708]
[1760858222147,0.17373357,3896.7,3896.4,3.86699999]
[1760858222352,0.17373357,3896.7,3896.4,6.4334212]
[1760858222548,0.17373357,3896.7,3896.4,3.86699999]
[1760858222847,0.17373357,3896.7,3896.5,2.56639391]
[1760858223431,0.17373357,3896.7,3896.4,6.43346663]
[1760858223631,0.17373357,3896.7,3896.4,3.86699999]
[1760858228753,0.27273357,3896.7,3896.4,3.86699999]
[1760858228949,0.099,3896.6,3896.4,3.86699999]
[1760858231226,0.04573357,3896.7,3896.4,3.86699999]
[1760858231957,0.14473357,3896.7,3896.4,3.86699999]
[1760858232758,0.04573357,3896.7,3896.4,3.86699999]
[1760858233453,0.14473357,3896.7,3896.4,3.86699999]
[1760858234458,0.128,3896.4,3896.0,0.4341]
[1760858234662,0.14473357,3896.7,3895.9,2.56675363]
[1760858234862,0.128,3896.2,3896.0,0.4341]
[1760858235062,0.128,3896.2,3896.1,0.4341]
[1760858236130,0.128,3896.2,3895.8,3.00096677]
[1760858236429,0.17273743,3896.2,3895.7,3.00102214]
[1760858236743,0.128,3895.9,3895.8,0.4341]
[1760858237260,0.128,3895.9,3895.6,2.56699723]
[1760858237437,0.128,3895.9,3895.6,0.4341]
[1760858238432,0.128,3895.9,3895.5,4.29500813]
[1760858238756,0.128,3895.9,3895.5,4.72910813]
[1760858239133,0.128,3895.9,3895.6,0.4341]
[1760858241364,0.128,3895.9,3895.6,2.56699819]
[1760858241570,0.128,3895.9,3895.7,0.4341]
[1760858242065,0.128,3895.9,3895.8,2.56686688]
[1760858242368,0.128,3895.9,3895.8,3.00096688]
[1760858242671,0.128,3895.9,3895.8,0.4341]
[1760858245281,0.128,3895.9,3895.8,3.00096688]
[1760858245981,0.128,3895.9,3895.8,3.02663554]
[1760858248280,0.04473932,3896.2,3896.1,2.56666923]
[1760858248651,0.04473932,3896.2,3896.1,3.00076923]
[1760858249379,0.04473932,3896.2,3896.1,3.12876923]
[1760858249583,0.128,3896.6,3896.5,2.56640574]
[1760858250083,0.128,3896.6,3896.5,3.00050574]
[1760858250787,0.128,3896.6,3896.5,0.4341]
[1760858251169,0.128,3896.6,3896.5,3.00050574]
[1760858252358,0.128,3896.6,3896.2,0.128]
[1760858252565,0.128,3896.6,3896.3,0.4341]
[1760858252778,0.128,3896.6,3896.4,2.56645692]
[1760858252975,0.128,3896.6,3896.4,3.00055692]
[1760858253994,0.128,3896.6,3896.4,2.56645692]
[1760858254196,0.128,3896.6,3896.4,3.00055692]
[1760858255391,0.128,3896.6,3896.5,2.56640574]
[1760858255599,0.128,3896.6,3896.5,4.76200574]
[1760858255893,0.04473379,3897.2,3896.5,8.62900573]
[1760858256097,0.04473379,3897.2,3896.6,3.03393988]
[1760858256098,0.128,3896.9,3896.6,3.03393988]
[1760858260921,0.128,3896.9,3896.6,6.90093987]
[1760858261117,0.128,3896.9,3896.6,7.95296066]
[1760858264899,0.04473379,3897.2,3896.6,7.95296066]
[1760858265100,0.128,3897.9,3896.6,9.15756067]
[1760858265302,0.128,3897.9,3896.6,9.28556067]
[1760858266214,0.128,3897.9,3896.6,6.70356067]
[1760858267223,0.001,3897.1,3896.6,6.70356067]
[1760858270194,0.001,3897.1,3896.6,10.57056066]
[1760858270389,0.001,3897.1,3896.6,9.46936066]
[1760858270701,0.001,3897.1,3896.6,9.93696066]
[1760858273044,0.001,3897.1,3896.6,9.46936066]
[1760858273279,0.1,3897.1,3896.6,9.46936066]
[1760858273567,0.3146,3896.9,3896.6,8.41733987]
[1760858273733,0.3146,3896.9,3896.6,6.68933987]
[1760858274329,0.3146,3896.9,3896.6,0.128]
[1760858274676,0.2292,3896.7,3896.3,2.56647615]
[1760858274966,0.129,3896.7,3896.4,2.56645426]
[1760858275371,0.129,3896.7,3896.5,2.56639186]
[1760858276349,0.129,3896.7,3896.3,2.88113583]
[1760858276549,0.129,3896.7,3896.4,0.34767358]
[1760858276937,0.129,3896.7,3896.5,2.56635832]
[1760858278831,0.129,3896.7,3896.3,0.3146]
[1760858279243,0.129,3896.7,3896.4,2.56645983]
[1760858280261,0.129,3896.7,3896.3,0.3146]
[1760858280469,0.129,3896.7,3896.3,3.34871365]
[1760858280635,0.129,3896.7,3896.3,2.88112547]
[1760858281915,0.129,3896.7,3896.4,2.56646521]
[1760858282819,0.001,3896.7,3895.8,3.86699999]
[1760858282961,0.128,3896.4,3895.9,1.728]
[1760858283166,0.001,3896.7,3895.8,4.18159999]
[1760858283167,0.1002,3896.3,3895.8,0.3146]
[1760858283469,0.128,3896.0,3895.7,3.86699999]
[1760858283787,0.3243,3895.9,3895.7,3.86699999]
[1760858284693,0.2253,3895.9,3895.7,3.86699999]
[1760858284907,0.128,3896.0,3895.7,3.86699999]
[1760858285205,0.40258124,3896.4,3896.0,2.56667943]
[1760858285503,0.40258124,3896.4,3895.8,2.56686688]
[1760858285803,0.40258124,3896.4,3895.8,2.56686246]
[1760858286171,0.40258124,3896.4,3895.7,3.86699999]
[1760858286707,0.40258124,3896.4,3895.7,6.43391931]
[1760858286889,0.44731049,3896.4,3895.7,6.43391931]
[1760858287205,0.44731049,3896.4,3895.8,2.56684524]
[1760858287566,0.44731049,3896.4,3895.8,6.43384523]
[1760858287983,0.44731049,3896.4,3895.8,6.90384523]
[1760858288404,0.44731049,3896.4,3895.8,4.33699999]
[1760858288601,0.44731049,3896.4,3896.0,2.56666977]
[1760858288791,0.44731049,3896.4,3896.1,0.02566669]
[1760858288990,0.40258124,3896.4,3896.3,2.56653748]
[1760858289280,0.001,3896.7,3896.3,2.56653748]
[1760858289281,0.001,3896.7,3896.6,2.56633988]
[1760858289622,0.001,3896.7,3896.6,2.59200327]
[1760858289779,0.001,3896.7,3896.6,4.57786023]
[1760858292315,0.001,3896.7,3896.6,6.33152362]
[1760858292514,0.001,3896.7,3896.6,6.30586023]
[1760858293019,0.001,3896.7,3896.6,6.93946023]
[1760858293378,0.001,3896.7,3896.6,9.52146023]
[1760858293595,0.001,3897.1,3897.0,4.92767646]
[1760858293797,0.001,3897.1,3897.0,13.3483606]
[1760858294089,0.001,3897.1,3897.0,13.79269984]
[1760858295075,0.001,3897.1,3897.0,11.33869984]
[1760858295282,0.001,3897.1,3897.0,13.92069984]
[1760858295685,0.001,3897.1,3897.0,6.44786053]
[1760858298935,0.001,3897.1,3897.0,5.97786053]
[1760858299128,0.001,3897.1,3897.0,6.44786053]
[1760858299955,0.001,3897.1,3897.0,6.60236053]
[1760858303974,0.001,3897.1,3897.0,9.18436053]
[1760858304872,0.001,3897.1,3897.0,8.71436053]
[1760858305582,0.001,3897.1,3897.0,9.18436053]
[1760858306500,0.001,3897.1,3897.0,5.49876053]
[1760858306672,0.001,3897.1,3897.0,9.18436053]
[1760858318219,0.001,3897.1,3897.0,6.13236053]
[1760858318421,0.001,3897.1,3897.0,8.71336053]
[1760858320232,0.001,3897.1,3897.0,12.58036052]
[1760858329036,0.001,3897.1,3897.0,13.04996052]
[1760858337315,0.001,3897.1,3897.0,12.58036052]
[1760858341136,0.001,3897.1,3897.0,13.04996052]
[1760858341757,0.001,3897.1,3897.0,12.58036052]
[1760858342058,0.001,3897.1,3897.0,13.04996052]
[1760858343749,0.001,3897.5,3897.4,4.9274131]
[1760858343956,0.001,3897.5,3897.4,13.53518324]
[1760858344252,0.001,3897.5,3897.4,13.66318324]
[1760858344454,0.001,3897.5,3897.4,13.81828324]
[1760858349777,0.001,3897.5,3897.4,17.68428323]
[1760858350371,0.1006,3897.5,3897.4,9.57884392]
[1760858350529,0.1006,3897.5,3897.4,12.00474392]
[1760858350733,0.001,3897.5,3897.4,12.00474392]
[1760858351750,0.1006,3897.5,3897.4,12.00474392]
[1760858351975,0.1006,3897.5,3897.4,6.85793082]
[1760858352228,0.1006,3897.5,3897.4,8.28781309]
[1760858354486,0.1006,3897.5,3897.4,5.72199999]
[1760858354686,0.1006,3897.5,3897.4,8.28781309]
[1760858355702,0.001,3897.5,3897.4,8.28781309]
[1760858356567,0.1006,3897.5,3897.4,8.28781309]
[1760858356870,0.1006,3897.5,3897.2,2.56594194]
[1760858357083,0.0996,3897.4,3897.3,2.56587894]
[1760858357919,0.0996,3897.4,3897.1,1.728]
[1760858358233,0.0996,3897.3,3896.9,0.3]
[1760858358517,0.0996,3897.2,3896.9,0.3]
[1760858358725,0.0996,3897.1,3896.9,0.3]
[1760858358883,0.0996,3897.0,3896.9,0.3]
[1760858360824,0.5021085,3897.0,3896.9,0.3]
[1760858363018,3.8790785,3897.0,3896.9,0.3]
[1760858365294,3.92380816,3897.0,3896.9,0.3]
[1760858367104,17.98466216,3897.0,3896.9,0.3]
[1760858367306,0.14432966,3897.0,3896.9,0.3]
[1760858367724,8.21389566,3897.0,3896.9,0.3]
[1760858367895,4.33521866,3897.0,3896.9,0.3]
[1760858368797,3.40672566,3897.0,3896.9,0.3]
[1760858368997,0.14432966,3897.0,3896.9,0.3]
[1760858369198,3.64472566,3897.0,3896.9,0.3]
[1760858369398,4.04725988,3897.0,3896.9,0.3]
[1760858371112,3.94765988,3897.0,3896.9,0.3]
[1760858371513,0.44726388,3897.0,3896.9,0.3]
[1760858373114,0.54686388,3897.0,3896.9,0.3]
[1760858373315,0.44726388,3897.0,3896.9,0.3]
[1760858373646,0.44726388,3897.0,3896.9,0.302]
[1760858373814,3.86263788,3897.0,3896.9,0.302]
[1760858374009,0.57626388,3897.0,3896.9,0.302]
[1760858374244,0.44726388,3897.0,3896.9,0.302]
[1760858374940,3.83540588,3897.0,3896.9,0.302]
[1760858381040,0.44726388,3897.0,3896.9,0.302]
[1760858382960,3.02022088,3897.0,3896.9,0.302]
[1760858385637,2.92062088,3897.0,3896.9,0.302]
[1760858388845,0.04472966,3897.0,3896.9,0.7354]
[1760858389476,0.001,3897.1,3896.9,0.7354]
[1760858389674,0.001,3897.1,3897.0,0.4334]
[1760858391275,0.001,3897.1,3896.9,0.302]
[1760858392178,0.001,3897.1,3896.9,0.7354]
[1760858393748,0.04572378,3897.1,3896.9,0.7354]
[1760858394459,0.04572378,3897.1,3897.0,0.4334]
[1760858394853,0.04572378,3897.1,3897.0,0.7635541]
[1760858395054,0.04572378,3897.1,3897.0,0.4334]
[1760858396258,0.17372378,3897.1,3896.9,0.302]
[1760858396584,0.17372378,3897.1,3897.0,0.4334]
[1760858400554,0.17372378,3897.1,3896.9,0.302]
[1760858401368,0.228,3897.1,3896.9,0.302]
[1760858401570,0.099,3897.0,3896.9,0.302]
[1760858401777,11.497648,3897.0,3896.9,0.302]
[1760858402085,13.697813,3897.0,3896.9,0.302]
[1760858402668,13.999813,3897.0,3896.9,0.302]
[1760858402984,25.00775,3897.0,3896.9,0.302]
[1760858403772,23.007712,3897.0,3896.9,0.302]
[1760858404593,22.226979,3897.0,3896.9,0.302]
[1760858404759,21.888434,3897.0,3896.9,0.302]
[1760858405092,22.223451,3897.0,3896.9,0.302]
[1760858405288,24.78952746,3897.0,3896.9,0.302]
[1760858405493,22.223451,3897.0,3896.9,0.302]
[1760858405986,2.7626,3897.0,3896.9,0.302]
[1760858406193,32.220782,3897.0,3896.9,0.302]
[1760858406389,34.54434546,3897.0,3896.9,0.302]
[1760858406988,34.07157546,3897.0,3896.9,0.302]
[1760858407193,24.454391,3897.0,3896.9,0.302]
[1760858407393,8.166044,3897.0,3896.9,0.302]
[1760858407961,2.8073345,3897.0,3896.9,0.302]
[1760858408166,14.6434225,3897.0,3896.9,0.302]
[1760858409110,16.4799215,3897.0,3896.9,0.302]
[1760858409898,21.27176081,3897.0,3896.9,0.302]
[1760858410096,7.59917381,3897.0,3896.9,0.302]
[1760858410270,26.36087581,3897.0,3896.9,0.302]
[1760858411194,7.69817381,3897.0,3896.9,0.302]
[1760858411397,29.76804481,3897.0,3896.9,0.302]
[1760858411596,28.31572781,3897.0,3896.9,0.302]
[1760858412001,28.71829105,3897.0,3896.9,0.302]
[1760858412319,30.58651905,3897.0,3896.9,0.302]
[1760858413416,38.10073705,3897.0,3896.9,0.20780045]
[1760858413566,41.26528299,3897.0,3896.9,0.20780045]
[1760858414284,41.22054849,3897.0,3896.9,0.20780045]
[1760858416004,40.81798525,3897.0,3896.9,0.20780045]
[1760858416608,40.56072723,3897.0,3896.9,0.20780045]
[1760858416808,40.76852768,3897.0,3896.9,0.20780045]
[1760858417407,10.76852768,3897.0,3896.9,0.20780045]
[1760858417724,40.76852768,3897.0,3896.9,0.20780045]
[1760858418527,10.76852768,3897.0,3896.9,0.20780045]
[1760858418726,40.76852768,3897.0,3896.9,0.20780045]
[1760858419437,41.17115174,3897.0,3896.9,0.20780045]
[1760858422530,40.88600019,3897.0,3896.9,0.20780045]
[1760858422898,40.57268226,3897.0,3896.9,0.20780045]
[1760858424938,40.1700582,3897.0,3896.9,0.20780045]
[1760858425339,40.0710582,3897.0,3896.9,0.20780045]
[1760858425635,39.86325775,3897.0,3896.9,0.20780045]
[1760858425837,9.86325775,3897.0,3896.9,0.20780045]
[1760858426139,39.86325775,3897.0,3896.9,0.20780045]
[1760858427936,40.26686678,3897.0,3896.9,0.20780045]
[1760858430320,40.36586678,3897.0,3896.9,0.20780045]
[1760858432229,40.36586678,3897.0,3896.6,0.002]
[1760858432230,2.56627402,3896.7,3896.6,0.002]
[1760858432429,2.56627402,3896.7,3896.3,0.002]
[1760858432430,34.92807161,3896.4,3896.3,0.002]
[1760858432638,39.81891092,3896.4,3896.3,0.002]
[1760858432946,40.12901092,3896.4,3896.3,0.002]
[1760858433150,40.27672277,3896.4,3896.3,0.002]
[1760858433454,40.23197619,3896.4,3896.3,0.002]
[1760858435327,40.61934567,3896.4,3896.3,0.002]
[1760858435630,41.02204607,3896.4,3896.3,0.002]
[1760858436134,41.06679294,3896.4,3896.3,0.002]
[1760858436334,40.78164139,3896.4,3896.3,0.002]
[1760858436866,40.27994099,3896.4,3896.3,0.002]
[1760858437562,10.27994099,3896.4,3896.3,0.002]
[1760858437745,40.27994099,3896.4,3896.3,0.002]
[1760858439586,10.27994099,3896.4,3896.3,0.002]
[1760858439787,40.68262184,3896.4,3896.3,0.002]
[1760858441281,40.49830391,3896.4,3896.3,0.002]
[1760858441498,39.63273864,3896.4,3896.3,0.4336]
[1760858441990,40.26633864,3896.4,3896.3,0.4336]
[1760858444792,10.26633864,3896.4,3896.3,0.4336]
[1760858444957,39.86365779,3896.4,3896.3,0.4336]
[1760858445756,9.86365779,3896.4,3896.3,0.4336]
[1760858445959,39.86365779,3896.4,3896.3,0.4336]
[1760858446893,40.26631378,3896.4,3896.3,0.4336]
[1760858448192,40.26631378,3896.4,3896.3,0.002]
[1760858449399,37.69984217,3896.4,3896.3,0.4336]
[1760858449903,7.69984217,3896.4,3896.3,0.4336]
[1760858450196,37.69984217,3896.4,3896.3,0.4336]
[1760858452074,7.69984217,3896.4,3896.3,0.4336]
[1760858452289,37.69984217,3896.4,3896.3,0.4336]
[1760858453702,40.26631378,3896.4,3896.3,0.002]
[1760858454108,10.26631378,3896.4,3896.3,0.002]
[1760858454409,40.26631378,3896.4,3896.3,0.002]
[1760858454576,39.86365779,3896.4,3896.3,0.002]
[1760858456508,39.96265779,3896.4,3896.3,0.002]
[1760858457508,40.27597572,3896.4,3896.3,0.002]
[1760858457725,40.7816267,3896.4,3896.3,0.002]
[1760858460596,34.92820335,3896.2,3896.1,0.002]
[1760858461017,35.02720335,3896.2,3896.1,0.002]
[1760858462806,35.34052128,3896.2,3896.1,0.002]
[1760858463815,34.92833511,3896.0,3895.7,0.002]
[1760858464039,39.81917442,3896.0,3895.7,0.002]
[1760858464206,39.91817442,3896.0,3895.7,0.002]
[1760858464410,40.42390116,3896.0,3895.7,0.002]
[1760858464617,40.46865315,3896.0,3895.7,0.002]
[1760858464821,39.96690838,3896.0,3895.7,0.002]
[1760858465431,9.96690838,3896.0,3895.7,0.002]
[1760858465742,39.96690838,3896.0,3895.7,0.002]
[1760858466511,39.96690838,3896.0,3895.7,0.4358]
[1760858467842,39.96690838,3896.0,3895.7,0.002]
[1760858468012,40.36964268,3896.0,3895.7,0.002]
[1760858468442,40.26666071,3896.0,3895.7,0.002]
[1760858472851,10.26666071,3896.0,3895.7,0.002]
[1760858473157,40.26666071,3896.0,3895.7,0.002]
[1760858475745,40.36566071,3896.0,3895.7,0.002]
[1760858475951,40.26666071,3896.0,3895.7,0.002]
[1760858477272,40.3696379,3896.0,3895.7,0.002]
[1760858477748,40.68295583,3896.0,3895.7,0.002]
[1760858477953,40.37922153,3896.0,3895.7,0.002]
[1760858480171,40.66437308,3896.0,3895.7,0.002]
[1760858480572,34.92846688,3895.8,3895.7,0.002]
[1760858481280,35.39706688,3895.8,3895.7,0.002]
[1760858485067,5.39706688,3895.8,3895.7,0.002]
[1760858485256,35.39706688,3895.8,3895.7,0.002]
[1760858488193,35.15403188,3895.8,3895.7,0.4706]
[1760858489379,35.39706688,3895.8,3895.7,0.4706]
[1760858489703,32.75869988,3895.8,3895.7,0.4706]
[1760858490459,33.25504888,3895.8,3895.7,0.002]
[1760858491394,5.39706688,3895.8,3895.7,0.002]
[1760858491601,34.22592588,3895.8,3895.7,0.002]
[1760858492380,5.39706688,3895.8,3895.7,0.002]
[1760858492583,35.39706688,3895.8,3895.7,0.002]
[1760858492805,35.06884988,3895.8,3895.7,0.002]
[1760858493692,35.39706688,3895.8,3895.7,0.002]
[1760858495210,35.08400888,3895.8,3895.7,0.002]
[1760858496885,5.39706688,3895.8,3895.7,0.002]
[1760858497098,35.39706688,3895.8,3895.7,0.002]
[1760858498197,34.48468388,3895.8,3895.7,0.002]
[1760858498903,5.39706688,3895.8,3895.7,0.002]
[1760858499104,35.39706688,3895.8,3895.7,0.002]
[1760858500009,5.39706688,3895.8,3895.7,0.002]
[1760858500189,4.29493277,3895.7,3895.6,0.002]
[1760858500390,34.29493277,3895.7,3895.6,0.002]
[1760858500873,34.39791235,3895.7,3895.6,0.002]
[1760858501077,0.6336,3895.4,3895.3,0.002]
[1760858501274,39.81956977,3895.4,3895.3,0.002]
[1760858501702,40.72250468,3895.4,3895.3,0.002]
[1760858501909,40.67774595,3895.4,3895.3,0.002]
[1760858504215,10.67774595,3895.4,3895.3,0.002]
[1760858504428,40.67774595,3895.4,3895.3,0.002]
[1760858504918,40.7225049,3895.4,3895.3,0.002]
[1760858505280,10.7225049,3895.4,3895.3,0.002]
[1760858505481,40.7225049,3895.4,3895.3,0.002]
[1760858505919,34.92886227,3895.2,3895.1,0.002]
[1760858506296,35.2421802,3895.2,3895.1,0.002]
[1760858506502,35.4720802,3895.2,3895.1,0.002]
[1760858507242,35.4720802,3895.2,3893.0,0.002]
[1760858507243,3.20119185,3894.7,3893.0,0.002]
[1760858507402,34.92919185,3894.7,3894.3,0.4534]
[1760858507735,35.33203925,3894.7,3894.3,0.4534]
[1760858507940,35.83020457,3894.7,3894.3,0.4534]
[1760858508837,0.6336,3894.3,3893.0,0.002]
[1760858509038,31.72272831,3894.3,3893.9,0.4534]
[1760858509218,31.85484818,3894.3,3894.0,0.4534]
[1760858509420,32.35301425,3894.3,3894.0,0.4534]
[1760858509820,34.92086983,3894.3,3894.0,0.4534]
[1760858510547,32.60226383,3894.3,3894.0,0.4534]
[1760858510918,32.60226383,3894.3,3894.2,0.4554]
[1760858511337,32.60226383,3894.3,3894.1,0.002]
[1760858511538,32.60226383,3894.3,3893.6,0.4554]
[1760858511539,32.3616,3893.9,3893.6,0.4554]
[1760858511724,39.82055867,3893.9,3893.8,0.4554]
[1760858511918,39.39199667,3893.9,3893.8,0.4554]
[1760858512115,33.52940667,3893.9,3893.8,0.4554]
[1760858512521,35.89172267,3893.9,3893.8,0.4554]
[1760858512845,34.92985127,3893.7,3893.6,0.002]
[1760858514553,4.92985127,3893.7,3893.6,0.002]
[1760858514760,4.92985127,3893.7,3893.3,0.002]
[1760858514761,3.20204917,3893.4,3893.3,0.002]
[1760858515072,38.09288848,3893.4,3893.3,0.002]
[1760858515454,38.59889629,3893.4,3893.3,0.002]
[1760858515638,8.59889629,3893.4,3893.3,0.002]
[1760858515960,38.59889629,3893.4,3893.3,0.002]
[1760858516332,37.52695129,3893.4,3893.3,0.002]
[1760858516867,38.69859629,3893.4,3893.3,0.002]
[1760858517057,38.59889629,3893.4,3893.3,0.002]
[1760858517762,8.59889629,3893.4,3893.3,0.002]
[1760858517961,38.59889629,3893.4,3893.3,0.002]
[1760858519163,38.19592722,3893.4,3893.3,0.002]
[1760858519834,8.19592722,3893.4,3893.3,0.002]
[1760858520033,38.19592722,3893.4,3893.3,0.002]
[1760858520228,22.70817522,3893.4,3893.3,0.002]
[1760858520857,8.19592722,3893.4,3893.3,0.002]
[1760858521056,27.72925822,3893.4,3893.3,0.002]
[1760858521791,27.31706422,3893.4,3893.3,0.002]
[1760858521996,30.31485748,3893.4,3893.3,0.002]
[1760858522198,25.62595948,3893.4,3893.3,0.002]
[1760858522369,24.87741948,3893.4,3893.3,0.4554]
[1760858522789,24.87741948,3893.4,3893.3,0.002]
[1760858522989,11.95054531,3893.4,3893.3,0.4554]
[1760858523193,11.84750657,3893.4,3893.3,0.4554]
[1760858523901,12.48110657,3893.4,3893.3,0.4554]
[1760858524066,16.10755357,3893.4,3893.3,0.4554]
[1760858524489,15.26977257,3893.4,3893.3,0.4554]
[1760858524878,14.85478857,3893.4,3893.3,0.4554]
[1760858525199,15.31759931,3893.4,3893.3,0.4554]